[Event "Late-Titled-Tuesday-Blitz-February-27-2024"]
[Site "Chess.com"]
[Date "2024.02.27"]
[Round "2"]
[White "Bigfish1995"]
[Black "KATPAH"]
[Result "1-0"]
[WhiteElo "3165"]
[BlackElo "2653"]
[TimeControl "180+1"]
[EndTime "14:18:16 PST"]
[Termination "Bigfish1995 won on time"]

1. e4 {[%clk 0:03:00.9]} 1... e5 {[%clk 0:02:58.7]} 2. Nf3 {[%clk 0:03:00.9]}
2... d6 {[%clk 0:02:58.7]} 3. d4 {[%clk 0:02:59.6]} 3... Bg4 {[%clk 0:02:59.4]}
4. dxe5 {[%clk 0:02:56.3]} 4... Nd7 {[%clk 0:03:00.1]} 5. exd6 {[%clk
0:02:45.4]} 5... Bxd6 {[%clk 0:03:01]} 6. Nc3 {[%clk 0:02:40.1]} 6... Ngf6
{[%clk 0:02:59.3]} 7. Be2 {[%clk 0:02:35.1]} 7... Qe7 {[%clk 0:02:51]} 8. Nd4
{[%clk 0:02:21.3]} 8... Bxe2 {[%clk 0:02:45.8]} 9. Qxe2 {[%clk 0:02:20.4]} 9...
g6 {[%clk 0:02:46.3]} 10. Bd2 {[%clk 0:02:09.8]} 10... Be5 {[%clk 0:02:24.1]}
11. Nf3 {[%clk 0:02:07.2]} 11... O-O-O {[%clk 0:01:54.3]} 12. Nxe5 {[%clk
0:02:03.8]} 12... Nxe5 {[%clk 0:01:53.2]} 13. O-O-O {[%clk 0:02:00.9]} 13... Nc6
{[%clk 0:01:46.9]} 14. Bg5 {[%clk 0:01:57.9]} 14... h6 {[%clk 0:01:39]} 15.
Rxd8+ {[%clk 0:01:50.1]} 15... Rxd8 {[%clk 0:01:37.7]} 16. Nd5 {[%clk 0:01:46]}
16... Rxd5 {[%clk 0:01:31.3]} 17. Bxf6 {[%clk 0:01:45.6]} 17... Qe6 {[%clk
0:01:29.4]} 18. Bc3 {[%clk 0:01:35.9]} 18... Rc5 {[%clk 0:01:24.5]} 19. Qe3
{[%clk 0:01:31]} 19... b6 {[%clk 0:01:13]} 20. b3 {[%clk 0:01:30.5]} 20... a5
{[%clk 0:01:04.2]} 21. Kb2 {[%clk 0:01:25.4]} 21... a4 {[%clk 0:01:04]} 22. Rd1
{[%clk 0:01:24.9]} 22... Na7 {[%clk 0:00:53]} 23. bxa4 {[%clk 0:00:59.2]} 23...
Rc4 {[%clk 0:00:48.3]} 24. Rd4 {[%clk 0:00:58]} 24... Nc6 {[%clk 0:00:48.5]} 25.
Rxc4 {[%clk 0:00:56.9]} 25... Qxc4 {[%clk 0:00:49.4]} 26. Qh3+ {[%clk
0:00:51.3]} 26... Kb7 {[%clk 0:00:48.2]} 27. Qd3 {[%clk 0:00:51.1]} 27... Qxa4
{[%clk 0:00:46.8]} 28. Qd5 {[%clk 0:00:51.6]} 28... f6 {[%clk 0:00:30.5]} 29. a3
{[%clk 0:00:48.5]} 29... f5 {[%clk 0:00:18.9]} 30. exf5 {[%clk 0:00:46.9]} 30...
gxf5 {[%clk 0:00:19.8]} 31. Qxf5 {[%clk 0:00:46.6]} 31... Qc4 {[%clk 0:00:19.6]}
32. g4 {[%clk 0:00:45.2]} 32... b5 {[%clk 0:00:18.8]} 33. Qd3 {[%clk 0:00:41.1]}
33... Qc5 {[%clk 0:00:18.5]} 34. Qd2 {[%clk 0:00:39.4]} 34... Ne5 {[%clk
0:00:17.3]} 35. Bxe5 {[%clk 0:00:33.1]} 35... Qxe5+ {[%clk 0:00:18.2]} 36. Qc3
{[%clk 0:00:33.3]} 36... Qxh2 {[%clk 0:00:19]} 37. Qc5 {[%clk 0:00:32.1]} 37...
c6 {[%clk 0:00:17.7]} 38. Qe7+ {[%clk 0:00:31.9]} 38... Kb6 {[%clk 0:00:17.8]}
39. Qe3+ {[%clk 0:00:32.1]} 39... Ka6 {[%clk 0:00:16.2]} 40. f4 {[%clk
0:00:32.4]} 40... Qg2 {[%clk 0:00:14.8]} 41. Qe6 {[%clk 0:00:31.8]} 41... Kb6
{[%clk 0:00:13.8]} 42. Qe3+ {[%clk 0:00:28.6]} 42... Ka6 {[%clk 0:00:13.8]} 43.
g5 {[%clk 0:00:24]} 43... hxg5 {[%clk 0:00:13.5]} 44. fxg5 {[%clk 0:00:24.9]}
44... Qg4 {[%clk 0:00:13.2]} 45. Qe5 {[%clk 0:00:24.5]} 45... Kb6 {[%clk
0:00:12.8]} 46. Qf6 {[%clk 0:00:23.3]} 46... b4 {[%clk 0:00:08.6]} 47. g6 {[%clk
0:00:21.5]} 47... bxa3+ {[%clk 0:00:08.7]} 48. Kxa3 {[%clk 0:00:22.4]} 48...
Qg3+ {[%clk 0:00:09.1]} 49. Ka2 {[%clk 0:00:21.6]} 49... Qg2 {[%clk 0:00:08.6]}
50. g7 {[%clk 0:00:21.8]} 50... Qd5+ {[%clk 0:00:06.3]} 51. Kb1 {[%clk
0:00:21.1]} 51... Qh1+ {[%clk 0:00:06.1]} 52. Kb2 {[%clk 0:00:21.4]} 52... Qg1
{[%clk 0:00:06]} 53. Qf7 {[%clk 0:00:20.6]} 53... Qd4+ {[%clk 0:00:05.8]} 54.
Kb3 {[%clk 0:00:18.8]} 54... Qe3+ {[%clk 0:00:02.9]} 55. c3 {[%clk 0:00:19.1]}
55... Qc1 {[%clk 0:00:03.6]} 56. Qf2+ {[%clk 0:00:17.6]} 56... c5 {[%clk
0:00:03.5]} 57. g8=Q {[%clk 0:00:17.4]} 57... Qb1+ {[%clk 0:00:03.9]} 58. Qb2
{[%clk 0:00:17.6]} 58... Qd1+ {[%clk 0:00:04.4]} 59. Ka2+ {[%clk 0:00:17.9]} 1-0

[Event "Late-Titled-Tuesday-Blitz-February-27-2024"]
[Site "Chess.com"]
[Date "2024.02.27"]
[Round "2"]
[White "otrov-11"]
[Black "MITerryble"]
[Result "0-1"]
[WhiteElo "2614"]
[BlackElo "3017"]
[TimeControl "180+1"]
[EndTime "14:18:16 PST"]
[Termination "MITerryble won on time"]

1. d4 {[%clk 0:03:00.9]} 1... e6 {[%clk 0:02:47.7]} 2. c4 {[%clk 0:03:01.2]}
2... Bb4+ {[%clk 0:02:47.4]} 3. Bd2 {[%clk 0:03:01.2]} 3... c5 {[%clk
0:02:44.2]} 4. d5 {[%clk 0:02:57.9]} 4... Nf6 {[%clk 0:02:42.9]} 5. Nc3 {[%clk
0:02:53.9]} 5... O-O {[%clk 0:02:41.8]} 6. Nf3 {[%clk 0:02:44.1]} 6... exd5
{[%clk 0:02:33.6]} 7. cxd5 {[%clk 0:02:45]} 7... d6 {[%clk 0:02:30.4]} 8. e3
{[%clk 0:02:16.7]} 8... Nbd7 {[%clk 0:02:23.4]} 9. a3 {[%clk 0:02:04.5]} 9...
Bxc3 {[%clk 0:02:18.4]} 10. Bxc3 {[%clk 0:02:05.4]} 10... Nb6 {[%clk 0:02:18.6]}
11. Bxf6 {[%clk 0:02:01.1]} 11... Qxf6 {[%clk 0:02:19.5]} 12. Qd2 {[%clk
0:02:01.3]} 12... Bf5 {[%clk 0:02:15.4]} 13. Bd3 {[%clk 0:00:55.8]} 13... Bxd3
{[%clk 0:02:15.4]} 14. Qxd3 {[%clk 0:00:56.7]} 14... Qxb2 {[%clk 0:02:15.7]} 15.
O-O {[%clk 0:00:57.4]} 15... c4 {[%clk 0:02:05.7]} 16. Qf5 {[%clk 0:00:55]}
16... g6 {[%clk 0:01:56.1]} 17. Qf4 {[%clk 0:00:54.3]} 17... Rad8 {[%clk
0:01:52.1]} 18. e4 {[%clk 0:00:53.5]} 18... Rfe8 {[%clk 0:01:41.7]} 19. h4
{[%clk 0:00:52.4]} 19... Qg7 {[%clk 0:01:33]} 20. a4 {[%clk 0:00:49.6]} 20... c3
{[%clk 0:01:29.1]} 21. Rfc1 {[%clk 0:00:44.1]} 21... Nc4 {[%clk 0:01:27.9]} 22.
Rab1 {[%clk 0:00:34.1]} 22... Rd7 {[%clk 0:01:21.2]} 23. Rb3 {[%clk 0:00:34.2]}
23... Rde7 {[%clk 0:01:21.1]} 24. Rbxc3 {[%clk 0:00:29]} 24... Rxe4 {[%clk
0:01:21.1]} 25. Qg3 {[%clk 0:00:29.3]} 25... Ne5 {[%clk 0:01:17.4]} 26. Rc8
{[%clk 0:00:28.6]} 26... Qf8 {[%clk 0:00:43.3]} 27. Rxe8 {[%clk 0:00:24.7]}
27... Qxe8 {[%clk 0:00:44.2]} 28. Ng5 {[%clk 0:00:25.2]} 28... Rxa4 {[%clk
0:00:41.9]} 29. Qh3 {[%clk 0:00:23.3]} 29... Ng4 {[%clk 0:00:37.5]} 30. h5
{[%clk 0:00:11.9]} 30... Rc4 {[%clk 0:00:29.4]} 31. Rb1 {[%clk 0:00:04.9]} 31...
Nf6 {[%clk 0:00:05.7]} 32. hxg6 {[%clk 0:00:04.8]} 32... hxg6 {[%clk 0:00:06.6]}
33. Qg3 {[%clk 0:00:02.8]} 33... Qe7 {[%clk 0:00:04.4]} 34. Nf3 {[%clk
0:00:02.2]} 34... Nxd5 {[%clk 0:00:03.8]} 35. Rd1 {[%clk 0:00:02.1]} 35... Nf6
{[%clk 0:00:04]} 36. Qg5 {[%clk 0:00:02]} 36... Rc5 {[%clk 0:00:03.9]} 37. Qh6
{[%clk 0:00:02]} 37... Ng4 {[%clk 0:00:03.8]} 38. Qf4 {[%clk 0:00:02]} 38... Ne5
{[%clk 0:00:03.5]} 39. Ng5 {[%clk 0:00:01.4]} 39... Rc4 {[%clk 0:00:02.2]} 40.
Ne4 {[%clk 0:00:01.6]} 40... f5 {[%clk 0:00:02.3]} 41. Qg5 {[%clk 0:00:01.7]}
41... Qxg5 {[%clk 0:00:02.3]} 42. Nxg5 {[%clk 0:00:02.6]} 42... Rc6 {[%clk
0:00:02.8]} 43. Ne6 {[%clk 0:00:03]} 43... Nf7 {[%clk 0:00:03]} 44. Nd4 {[%clk
0:00:03.9]} 44... Rc5 {[%clk 0:00:03.3]} 45. Nf3 {[%clk 0:00:04.5]} 45... d5
{[%clk 0:00:03.6]} 46. Re1 {[%clk 0:00:04.1]} 46... Kf8 {[%clk 0:00:04.2]} 47.
Re6 {[%clk 0:00:04.4]} 47... Rc6 {[%clk 0:00:04.8]} 48. Re2 {[%clk 0:00:03.6]}
48... Rd6 {[%clk 0:00:05.2]} 49. Nd4 {[%clk 0:00:04.1]} 49... a6 {[%clk
0:00:05.7]} 50. Rc2 {[%clk 0:00:04.1]} 50... Nd8 {[%clk 0:00:04.8]} 51. Rc7
{[%clk 0:00:04.3]} 51... Ne6 {[%clk 0:00:04.6]} 52. Rc8+ {[%clk 0:00:02.1]}
52... Kf7 {[%clk 0:00:04.3]} 53. Nf3 {[%clk 0:00:02.6]} 53... Kf6 {[%clk
0:00:04.3]} 54. Rb8 {[%clk 0:00:03.1]} 54... Rb6 {[%clk 0:00:04.6]} 0-1

[Event "Late-Titled-Tuesday-Blitz-February-27-2024"]
[Site "Chess.com"]
[Date "2024.02.27"]
[Round "2"]
[White "Caracal3000"]
[Black "kai_nov"]
[Result "1-0"]
[WhiteElo "2526"]
[BlackElo "2323"]
[TimeControl "180+1"]
[EndTime "14:18:19 PST"]
[Termination "Caracal3000 won on time"]

1. e4 {[%clk 0:03:00.9]} 1... c5 {[%clk 0:02:59.6]} 2. Nf3 {[%clk 0:02:56.3]}
2... Nc6 {[%clk 0:02:59.5]} 3. Nc3 {[%clk 0:02:55.7]} 3... e5 {[%clk 0:02:58.9]}
4. Bc4 {[%clk 0:02:53.8]} 4... d6 {[%clk 0:02:58.9]} 5. d3 {[%clk 0:02:54.4]}
5... Be7 {[%clk 0:02:59.2]} 6. Nd2 {[%clk 0:02:54.9]} 6... Bg5 {[%clk
0:02:52.7]} 7. Nf1 {[%clk 0:02:53.1]} 7... Bxc1 {[%clk 0:02:30.3]} 8. Qxc1
{[%clk 0:02:52.7]} 8... Nge7 {[%clk 0:02:22.9]} 9. Ne3 {[%clk 0:02:52.5]} 9...
O-O {[%clk 0:02:18.3]} 10. O-O {[%clk 0:02:51.9]} 10... Be6 {[%clk 0:02:11.8]}
11. Ncd5 {[%clk 0:02:50.8]} 11... Nd4 {[%clk 0:01:54.5]} 12. c3 {[%clk
0:02:48.3]} 12... Ne2+ {[%clk 0:01:54.1]} 13. Kh1 {[%clk 0:02:46.6]} 13... Nxc1
{[%clk 0:01:55]} 14. Raxc1 {[%clk 0:02:46.8]} 14... Nxd5 {[%clk 0:01:52]} 15.
exd5 {[%clk 0:02:45.1]} 15... Bd7 {[%clk 0:01:51.4]} 16. d4 {[%clk 0:02:39.7]}
16... cxd4 {[%clk 0:01:48.9]} 17. cxd4 {[%clk 0:02:40.6]} 17... exd4 {[%clk
0:01:48.9]} 18. Nc2 {[%clk 0:02:41.4]} 18... Qb6 {[%clk 0:01:42.3]} 19. Bb3
{[%clk 0:02:40.2]} 19... Bf5 {[%clk 0:01:17.7]} 20. Na3 {[%clk 0:02:37.1]} 20...
Rac8 {[%clk 0:01:09]} 21. Nc4 {[%clk 0:02:37.2]} 21... Qc5 {[%clk 0:01:07.8]}
22. Rcd1 {[%clk 0:02:27.7]} 22... Rfe8 {[%clk 0:00:51]} 23. Nd2 {[%clk
0:02:27.2]} 23... Bd3 {[%clk 0:00:39.1]} 24. Rg1 {[%clk 0:02:26]} 24... b5
{[%clk 0:00:34.8]} 25. Nf3 {[%clk 0:02:25.6]} 25... Be2 {[%clk 0:00:32.7]} 26.
Rd2 {[%clk 0:02:16.1]} 26... Bxf3 {[%clk 0:00:32.5]} 27. gxf3 {[%clk 0:02:17]}
27... g6 {[%clk 0:00:29.9]} 28. f4 {[%clk 0:02:15.2]} 28... a5 {[%clk
0:00:29.2]} 29. f5 {[%clk 0:02:15.6]} 29... Kg7 {[%clk 0:00:29.5]} 30. fxg6
{[%clk 0:02:13.8]} 30... hxg6 {[%clk 0:00:30.4]} 31. a3 {[%clk 0:02:09.9]} 31...
a4 {[%clk 0:00:29.5]} 32. Ba2 {[%clk 0:02:10.6]} 32... Re5 {[%clk 0:00:26.4]}
33. f4 {[%clk 0:02:10.2]} 33... Rf5 {[%clk 0:00:21.2]} 34. Rdg2 {[%clk
0:02:07.9]} 34... Rxf4 {[%clk 0:00:20.1]} 35. Rg3 {[%clk 0:02:05.7]} 35... Re8
{[%clk 0:00:19.6]} 36. Rg5 {[%clk 0:02:04.1]} 36... Re3 {[%clk 0:00:18.8]} 37.
Bb1 {[%clk 0:02:04.5]} 37... Qxd5+ {[%clk 0:00:17.7]} 38. Rxd5 {[%clk
0:02:04.1]} 38... Re2 {[%clk 0:00:17.9]} 39. Bd3 {[%clk 0:01:44.2]} 39... Rd2
{[%clk 0:00:14.7]} 40. Bf1 {[%clk 0:01:22.6]} 40... Rxb2 {[%clk 0:00:14]} 41.
Bg2 {[%clk 0:01:23.2]} 41... b4 {[%clk 0:00:12.6]} 42. axb4 {[%clk 0:01:20]}
42... a3 {[%clk 0:00:13]} 43. Rxd6 {[%clk 0:01:20.9]} 43... a2 {[%clk 0:00:13]}
44. Ra6 {[%clk 0:01:20.3]} 44... Rff2 {[%clk 0:00:12.3]} 45. Ra7 {[%clk
0:01:09.9]} 45... Rxb4 {[%clk 0:00:11.6]} 46. Be4 {[%clk 0:01:06.1]} 46... Rbb2
{[%clk 0:00:11.2]} 47. Rxg6+ {[%clk 0:01:06.2]} 47... Kf8 {[%clk 0:00:07.9]} 48.
Rg3 {[%clk 0:00:32.5]} 48... Rb1+ {[%clk 0:00:06.1]} 49. Rg1 {[%clk 0:00:31.4]}
49... Rbb2 {[%clk 0:00:05.7]} 50. Ra1 {[%clk 0:00:28]} 50... Rxh2+ {[%clk
0:00:03.5]} 51. Kg1 {[%clk 0:00:28.5]} 51... Rhe2 {[%clk 0:00:03.2]} 52. Bd3
{[%clk 0:00:26.2]} 52... Red2 {[%clk 0:00:02.8]} 53. Be4 {[%clk 0:00:25.8]}
53... Re2 {[%clk 0:00:02.7]} 54. Bd3 {[%clk 0:00:25.3]} 54... Rg2+ {[%clk
0:00:03]} 55. Kf1 {[%clk 0:00:24.5]} 55... Rh2 {[%clk 0:00:03]} 56. Kg1 {[%clk
0:00:24]} 56... Rbg2+ {[%clk 0:00:03.1]} 57. Kf1 {[%clk 0:00:24.6]} 57... Rd2
{[%clk 0:00:03.3]} 58. Kg1 {[%clk 0:00:21.5]} 58... Rh6 {[%clk 0:00:01.3]} 59.
Bc4 {[%clk 0:00:20.2]} 1-0

[Event "Late-Titled-Tuesday-Blitz-February-27-2024"]
[Site "Chess.com"]
[Date "2024.02.27"]
[Round "2"]
[White "WilsonPalencia21"]
[Black "ckgchess"]
[Result "1-0"]
[WhiteElo "2589"]
[BlackElo "2870"]
[TimeControl "180+1"]
[EndTime "14:18:20 PST"]
[Termination "WilsonPalencia21 won on time"]

1. d4 {[%clk 0:03:00.9]} 1... Nf6 {[%clk 0:02:59.4]} 2. c4 {[%clk 0:02:59.7]}
2... g6 {[%clk 0:02:59.8]} 3. Nf3 {[%clk 0:02:58.4]} 3... Bg7 {[%clk 0:03:00]}
4. Nc3 {[%clk 0:02:58.5]} 4... O-O {[%clk 0:03:00.1]} 5. e4 {[%clk 0:02:58.6]}
5... d6 {[%clk 0:03:00.6]} 6. Be2 {[%clk 0:02:58.9]} 6... e5 {[%clk 0:03:00.8]}
7. O-O {[%clk 0:02:58.5]} 7... exd4 {[%clk 0:03:01.3]} 8. Nxd4 {[%clk
0:02:58.7]} 8... Re8 {[%clk 0:03:02.2]} 9. f3 {[%clk 0:02:59]} 9... Nc6 {[%clk
0:03:02.5]} 10. Be3 {[%clk 0:02:56.2]} 10... Nh5 {[%clk 0:03:03.1]} 11. Qd2
{[%clk 0:02:47.8]} 11... Nxd4 {[%clk 0:02:59.8]} 12. Bxd4 {[%clk 0:02:47.3]}
12... Nf4 {[%clk 0:03:00.2]} 13. Rf2 {[%clk 0:02:25]} 13... Qg5 {[%clk
0:02:51.8]} 14. Kh1 {[%clk 0:02:07]} 14... h6 {[%clk 0:01:48.7]} 15. Be3 {[%clk
0:01:56.4]} 15... Be5 {[%clk 0:01:18.7]} 16. Nd5 {[%clk 0:01:40.6]} 16... c6
{[%clk 0:00:40.2]} 17. Nxf4 {[%clk 0:01:30.9]} 17... Qh4 {[%clk 0:00:39]} 18. g3
{[%clk 0:01:28.9]} 18... Qe7 {[%clk 0:00:39.4]} 19. Nd3 {[%clk 0:01:26.3]} 19...
Bh8 {[%clk 0:00:38.7]} 20. Bxh6 {[%clk 0:01:22.6]} 20... Be6 {[%clk 0:00:39.6]}
21. Bg5 {[%clk 0:01:21.7]} 21... f6 {[%clk 0:00:39.7]} 22. Bf4 {[%clk
0:01:20.8]} 22... Bxc4 {[%clk 0:00:39.7]} 23. b3 {[%clk 0:01:16.2]} 23... Bf7
{[%clk 0:00:39.8]} 24. Rd1 {[%clk 0:01:15.8]} 24... Rad8 {[%clk 0:00:40]} 25.
Bf1 {[%clk 0:01:06.8]} 25... d5 {[%clk 0:00:40.3]} 26. exd5 {[%clk 0:00:51.6]}
26... Bxd5 {[%clk 0:00:41.2]} 27. Bg2 {[%clk 0:00:46.7]} 27... g5 {[%clk
0:00:40.8]} 28. Re1 {[%clk 0:00:35.1]} 28... Qh7 {[%clk 0:00:41.1]} 29. Rxe8+
{[%clk 0:00:32.2]} 29... Rxe8 {[%clk 0:00:42]} 30. Be3 {[%clk 0:00:32.7]} 30...
Qe7 {[%clk 0:00:36.1]} 31. Bc5 {[%clk 0:00:28.9]} 31... Qd7 {[%clk 0:00:33.8]}
32. Re2 {[%clk 0:00:27.1]} 32... Rd8 {[%clk 0:00:34]} 33. Qe3 {[%clk 0:00:24.4]}
33... Bf7 {[%clk 0:00:31.3]} 34. Nf2 {[%clk 0:00:23.7]} 34... Bg7 {[%clk
0:00:30.8]} 35. Qe7 {[%clk 0:00:20.6]} 35... Qc8 {[%clk 0:00:29.9]} 36. Bh3
{[%clk 0:00:16.7]} 36... Qb8 {[%clk 0:00:26.5]} 37. Be6 {[%clk 0:00:16.8]} 37...
Rf8 {[%clk 0:00:21.9]} 38. Bxf7+ {[%clk 0:00:15.6]} 38... Rxf7 {[%clk
0:00:22.8]} 39. Qe8+ {[%clk 0:00:16]} 39... Qxe8 {[%clk 0:00:22.5]} 40. Rxe8+
{[%clk 0:00:16.2]} 40... Kh7 {[%clk 0:00:23.4]} 41. Re7 {[%clk 0:00:16.7]} 41...
Rxe7 {[%clk 0:00:22.1]} 42. Bxe7 {[%clk 0:00:16.4]} 42... Kg6 {[%clk 0:00:23]}
43. Kg2 {[%clk 0:00:15.8]} 43... Kf7 {[%clk 0:00:23.1]} 44. Bc5 {[%clk
0:00:15.9]} 44... b6 {[%clk 0:00:23.7]} 45. Bd4 {[%clk 0:00:16.5]} 45... Ke6
{[%clk 0:00:24.6]} 46. Ng4 {[%clk 0:00:16.2]} 46... c5 {[%clk 0:00:24.2]} 47.
Bc3 {[%clk 0:00:16.7]} 47... b5 {[%clk 0:00:20.2]} 48. h4 {[%clk 0:00:16.1]}
48... gxh4 {[%clk 0:00:19.5]} 49. gxh4 {[%clk 0:00:16.5]} 49... b4 {[%clk
0:00:18]} 50. Bb2 {[%clk 0:00:16.5]} 50... a5 {[%clk 0:00:18.2]} 51. h5 {[%clk
0:00:16.5]} 51... Bh8 {[%clk 0:00:17.8]} 52. h6 {[%clk 0:00:15]} 52... a4 {[%clk
0:00:18.3]} 53. h7 {[%clk 0:00:14.3]} 53... a3 {[%clk 0:00:17.2]} 54. Bxf6
{[%clk 0:00:13.8]} 1-0

[Event "Late-Titled-Tuesday-Blitz-February-27-2024"]
[Site "Chess.com"]
[Date "2024.02.27"]
[Round "2"]
[White "noblerone"]
[Black "chessydotcom"]
[Result "0-1"]
[WhiteElo "2473"]
[BlackElo "2271"]
[TimeControl "180+1"]
[EndTime "14:18:20 PST"]
[Termination "chessydotcom won on time"]

1. d4 {[%clk 0:03:00.9]} 1... d5 {[%clk 0:03:00.1]} 2. Nf3 {[%clk 0:03:00.2]}
2... c5 {[%clk 0:02:59.8]} 3. c3 {[%clk 0:02:59.7]} 3... Nc6 {[%clk 0:02:59.9]}
4. dxc5 {[%clk 0:02:57.4]} 4... e5 {[%clk 0:02:57.3]} 5. Be3 {[%clk 0:02:53.7]}
5... f5 {[%clk 0:02:44.9]} 6. Bg5 {[%clk 0:02:51.2]} 6... Nf6 {[%clk 0:02:41]}
7. Bxf6 {[%clk 0:02:49.3]} 7... gxf6 {[%clk 0:02:41.9]} 8. b4 {[%clk 0:02:48.4]}
8... a5 {[%clk 0:02:39.5]} 9. b5 {[%clk 0:02:39.8]} 9... Nb8 {[%clk 0:02:38.1]}
10. e3 {[%clk 0:02:31.9]} 10... Bxc5 {[%clk 0:02:35.9]} 11. Be2 {[%clk
0:02:24.4]} 11... Be6 {[%clk 0:02:32.6]} 12. O-O {[%clk 0:02:24.2]} 12... O-O
{[%clk 0:02:29.7]} 13. Nh4 {[%clk 0:02:18.7]} 13... Kh8 {[%clk 0:02:25.5]} 14.
Bd3 {[%clk 0:02:15]} 14... e4 {[%clk 0:02:23]} 15. Bc2 {[%clk 0:02:15.4]} 15...
Rg8 {[%clk 0:02:13.8]} 16. g3 {[%clk 0:02:10.8]} 16... Qd7 {[%clk 0:02:05.4]}
17. a4 {[%clk 0:02:06.6]} 17... Qg7 {[%clk 0:02:01.5]} 18. Qh5 {[%clk
0:02:01.5]} 18... Qg5 {[%clk 0:02:00.3]} 19. Bd1 {[%clk 0:01:57.8]} 19... Nd7
{[%clk 0:01:56.3]} 20. Nd2 {[%clk 0:01:33.6]} 20... Ne5 {[%clk 0:01:54.4]} 21.
Nb3 {[%clk 0:01:29.4]} 21... Bb6 {[%clk 0:01:48.3]} 22. Nd4 {[%clk 0:01:25.1]}
22... Bxd4 {[%clk 0:01:43.7]} 23. cxd4 {[%clk 0:01:26]} 23... Nc4 {[%clk
0:01:32.5]} 24. Be2 {[%clk 0:01:17.6]} 24... Nd6 {[%clk 0:01:30]} 25. Rfc1
{[%clk 0:01:11.6]} 25... Rac8 {[%clk 0:01:25.3]} 26. Rc5 {[%clk 0:01:08]} 26...
Bf7 {[%clk 0:01:21.1]} 27. Qxg5 {[%clk 0:01:04.3]} 27... fxg5 {[%clk 0:01:22]}
28. Ng2 {[%clk 0:01:05]} 28... b6 {[%clk 0:01:00.1]} 29. Rc6 {[%clk 0:01:02.7]}
29... Nc4 {[%clk 0:00:44.6]} 30. Rf6 {[%clk 0:00:52.4]} 30... Kg7 {[%clk
0:00:32.5]} 31. Rxf5 {[%clk 0:00:41.2]} 31... Kg6 {[%clk 0:00:32.8]} 32. g4
{[%clk 0:00:14.8]} 32... Be6 {[%clk 0:00:31.6]} 33. h3 {[%clk 0:00:15.3]} 33...
Bxf5 {[%clk 0:00:31.5]} 34. gxf5+ {[%clk 0:00:16.2]} 34... Kxf5 {[%clk
0:00:32.1]} 35. Bg4+ {[%clk 0:00:16.6]} 35... Kf6 {[%clk 0:00:32.1]} 36. Bxc8
{[%clk 0:00:17.5]} 36... Rxc8 {[%clk 0:00:32.5]} 37. Rc1 {[%clk 0:00:14.7]}
37... Rf8 {[%clk 0:00:28.9]} 38. Ne1 {[%clk 0:00:13.4]} 38... Re8 {[%clk
0:00:26.1]} 39. Kg2 {[%clk 0:00:13.7]} 39... Re6 {[%clk 0:00:26.6]} 40. Nc2
{[%clk 0:00:12.2]} 40... Nb2 {[%clk 0:00:25.6]} 41. Ne1 {[%clk 0:00:10.3]} 41...
Ke7 {[%clk 0:00:08.4]} 42. Rc7+ {[%clk 0:00:09.9]} 42... Kd6 {[%clk 0:00:08.5]}
43. Rxh7 {[%clk 0:00:09.3]} 43... Nxa4 {[%clk 0:00:08.8]} 44. Rg7 {[%clk
0:00:09]} 44... Nc3 {[%clk 0:00:06.8]} 45. Rxg5 {[%clk 0:00:08.2]} 45... a4
{[%clk 0:00:07.3]} 46. Nc2 {[%clk 0:00:08.1]} 46... Nxb5 {[%clk 0:00:07]} 47.
Nb4 {[%clk 0:00:08.3]} 47... Nc7 {[%clk 0:00:05.9]} 48. h4 {[%clk 0:00:07.9]}
48... a3 {[%clk 0:00:05.7]} 49. h5 {[%clk 0:00:07.3]} 49... Ke7 {[%clk
0:00:05.6]} 50. Rg7+ {[%clk 0:00:04]} 50... Kd6 {[%clk 0:00:04.6]} 51. Kg3
{[%clk 0:00:02.8]} 51... Na6 {[%clk 0:00:03.5]} 52. Nxa6 {[%clk 0:00:01]} 52...
a2 {[%clk 0:00:03.4]} 0-1